bitfinex/quotes_SOLUSD_20230701
["timestamp","ask_amount","ask_price","bid_price","bid_amount"]
[1688235498456,96.81915125,18.379,18.366,23.03]
[1688235502571,96.81915125,18.379,18.365,23.032]
[1688235506356,41.81915125,18.379,18.365,23.032]
[1688235506560,41.81915125,18.379,18.365,93.16619922]
[1688235506762,41.81915125,18.379,18.366,10.83719922]
[1688235506962,41.81915125,18.379,18.369,23.027]
[1688235507374,41.81915125,18.379,18.367,23.029]
[1688235507978,41.82215125,18.377,18.367,23.029]
[1688235508363,18.80315125,18.375,18.367,23.029]
[1688235508977,55.0,18.378,18.367,23.029]
[1688235508978,23.019,18.376,18.367,23.029]
[1688235509177,18.80315125,18.375,18.367,23.029]
[1688235510182,41.82415125,18.375,18.367,23.029]
[1688235510365,23.021,18.375,18.367,23.029]
[1688235510973,18.80315125,18.374,18.367,23.029]
[1688235511157,18.80315125,18.377,18.367,23.029]
[1688235511365,55.0,18.376,18.367,23.029]
[1688235511570,18.80315125,18.375,18.367,23.029]
[1688235512463,18.80315125,18.376,18.367,23.029]
[1688235513681,41.82215125,18.376,18.367,23.029]
[1688235513882,23.019,18.376,18.367,23.029]
[1688235519174,18.80315125,18.375,18.367,23.029]
[1688235519376,23.021,18.374,18.367,23.029]
[1688235522583,23.02,18.376,18.367,23.029]
[1688235522777,18.80315125,18.375,18.367,23.029]
[1688235524683,23.02,18.375,18.367,23.029]
[1688235530477,55.0,18.374,18.364,5.16099729]
[1688235530683,23.025,18.371,18.363,23.034]
[1688235531377,18.80315125,18.37,18.364,17.12000737]
[1688235533189,41.83015125,18.37,18.364,17.12000737]
[1688235533390,23.027,18.37,18.363,23.034]
[1688235534394,18.80315125,18.371,18.364,2.1451532]
[1688235534586,18.80315125,18.371,18.364,25.1771532]
[1688235534896,18.80315125,18.371,18.364,23.032]
[1688235535695,18.80315125,18.372,18.364,23.032]
[1688235536593,23.021,18.375,18.365,8.80622447]
[1688235536594,18.80315125,18.374,18.365,8.80622447]
[1688235536892,18.80315125,18.374,18.367,23.029]
[1688235537084,23.021,18.375,18.367,23.029]
[1688235544487,18.80315125,18.379,18.367,23.029]
[1688235544688,55.0,18.378,18.367,23.029]
[1688235544885,18.80315125,18.377,18.367,23.029]
[1688235545097,55.0,18.376,18.367,23.029]
[1688235545282,18.80315125,18.375,18.367,23.029]
[1688235545599,41.82315125,18.375,18.367,23.029]
[1688235546388,41.82315125,18.375,18.37,24.68]
[1688235546389,18.80315125,18.375,18.37,24.68]
[1688235546582,23.016,18.379,18.371,23.024]
[1688235546807,23.013,18.381,18.371,23.024]
[1688235547098,18.80315125,18.38,18.371,23.024]
[1688235547600,23.014,18.38,18.371,23.024]
[1688235554193,23.014,18.38,18.37,24.68]
[1688235555800,23.014,18.38,18.37,47.706]
[1688235557415,18.80315125,18.383,18.374,23.02]
[1688235566506,41.81315125,18.383,18.374,23.02]
[1688235566710,23.01,18.383,18.372,122.4681]
[1688235566905,18.80315125,18.382,18.372,23.023]
[1688235567112,41.81515125,18.382,18.372,23.023]
[1688235568614,23.012,18.382,18.372,23.023]
[1688235569413,23.014,18.38,18.372,23.023]
[1688235569618,23.014,18.38,18.352,10.83719922]
[1688235569915,23.02,18.376,18.368,23.028]
[1688235570620,73.80315125,18.375,18.368,23.028]
[1688235570816,96.82315125,18.375,18.368,23.028]
[1688235571325,96.82315125,18.375,18.367,23.029]
[1688235572418,41.82315125,18.375,18.367,23.029]
[1688235572923,23.02,18.375,18.367,23.029]
[1688235573708,23.02,18.375,18.365,23.031]
[1688235577922,23.018,18.377,18.365,23.031]
[1688235578130,18.80315125,18.376,18.365,82.328]
[1688235580937,18.80315125,18.376,18.366,55.0]
[1688235581119,18.80315125,18.376,18.369,23.027]
[1688235581721,89.47467339,18.391,18.37,24.68]
[1688235581722,18.80315125,18.379,18.37,24.68]
[1688235581930,18.80315125,18.379,18.372,23.023]
[1688235582129,18.80315125,18.382,18.373,20.0]
[1688235582331,41.81215125,18.384,18.375,23.019]
[1688235582525,41.81215125,18.384,18.376,23.018]
[1688235582922,23.009,18.384,18.376,23.018]
[1688235585929,23.006,18.386,18.376,23.018]
[1688235586131,73.80315125,18.385,18.376,23.018]
[1688235587139,96.81115125,18.385,18.376,23.018]
[1688235589532,18.80315125,18.385,18.376,23.018]
[1688235589732,18.80315125,18.386,18.376,23.018]
[1688235590040,41.80915125,18.386,18.376,23.018]
[1688235594550,41.80915125,18.386,18.373,20.0]
[1688235594845,41.80915125,18.386,18.372,20.0]
[1688235595040,41.80915125,18.386,18.373,55.0]
[1688235595949,41.80915125,18.386,18.374,23.02]
[1688235596149,41.80915125,18.386,18.373,23.021]
[1688235596336,55.0,18.385,18.373,23.021]
[1688235596640,18.80315125,18.384,18.373,23.021]
[1688235596842,55.0,18.383,18.373,23.021]
[1688235597041,18.80315125,18.382,18.373,23.021]
[1688235598555,18.80315125,18.384,18.373,23.021]
[1688235600652,23.009,18.384,18.373,23.021]
[1688235603157,23.007,18.386,18.373,23.021]
[1688235603340,73.80315125,18.385,18.373,23.021]
[1688235603959,96.81115125,18.385,18.373,23.021]
[1688235608957,18.80315125,18.385,18.373,23.021]
[1688235609169,18.80315125,18.386,18.373,23.021]
[1688235609459,18.80315125,18.386,18.372,20.0]
[1688235609460,18.80315125,18.388,18.377,23.017]
[1688235610264,41.80715125,18.388,18.377,23.017]
[1688235610451,55.0,18.387,18.377,23.017]
[1688235610647,18.80315125,18.386,18.377,23.017]
[1688235610855,23.004,18.388,18.377,23.017]
[1688235611162,18.80315125,18.387,18.377,23.017]
[1688235611367,41.80915125,18.387,18.377,23.017]
[1688235613065,41.80915125,18.387,18.375,92.0053]
[1688235613360,23.011,18.383,18.373,23.022]
[1688235613544,23.013,18.381,18.373,23.022]
[1688235613949,18.80315125,18.38,18.373,23.022]
[1688235615764,18.80315125,18.381,18.373,23.022]
[1688235616554,18.80315125,18.382,18.373,23.022]
[1688235618968,18.80315125,18.386,18.373,23.022]
[1688235619161,23.009,18.384,18.373,23.022]
[1688235619362,18.80315125,18.383,18.373,23.022]
[1688235622072,41.81415125,18.383,18.373,23.022]
[1688235622268,55.0,18.382,18.373,23.022]
[1688235622467,18.80315125,18.381,18.373,23.022]
[1688235629564,18.80315125,18.382,18.373,23.022]
[1688235629765,18.80315125,18.382,18.371,59.278]
[1688235629766,24.59,18.38,18.371,23.024]
[1688235629955,23.017,18.378,18.369,23.027]
[1688235630160,18.80315125,18.377,18.369,23.027]
[1688235630356,41.82115125,18.377,18.369,23.027]
[1688235635668,18.80315125,18.377,18.369,23.027]
[1688235635869,18.80315125,18.378,18.369,23.027]
[1688235636269,41.82015125,18.378,18.369,23.027]
[1688235641375,41.82015125,18.378,18.367,23.029]
[1688235650691,23.015,18.38,18.372,23.023]
[1688235650887,23.015,18.379,18.372,23.023]
[1688235653381,18.80315125,18.378,18.37,47.705]
[1688235653892,23.017,18.378,18.37,47.705]
[1688235654673,23.017,18.378,18.367,23.029]
[1688235654876,18.80315125,18.377,18.367,23.029]
[1688235655079,23.019,18.376,18.367,23.029]
[1688235655991,18.80315125,18.379,18.367,23.029]
[1688235657800,41.81815125,18.379,18.367,23.029]
[1688235659475,41.81815125,18.379,18.37,24.68]
[1688235659679,23.015,18.379,18.37,24.68]
[1688235659995,23.015,18.379,18.37,47.706]
[1688235660198,18.80315125,18.378,18.37,47.706]
[1688235660388,23.018,18.377,18.37,24.68]
[1688235663779,18.80315125,18.376,18.37,24.68]
[1688235663979,41.82315125,18.376,18.37,24.68]
[1688235664195,23.02,18.376,18.37,24.68]
[1688235672683,23.02,18.376,18.369,23.027]
[1688235675501,23.02,18.376,18.367,23.029]
[1688235675796,6.52765775,18.375,18.367,23.029]
[1688235675998,23.021,18.374,18.367,23.029]
[1688235677101,23.021,18.374,18.365,4.24339076]
[1688235677397,15.34000108,18.373,18.364,16.67765449]
[1688235677580,23.027,18.37,18.361,16.67765449]
[1688235677788,23.027,18.37,18.362,20.0]
[1688235678190,15.34000108,18.369,18.362,20.0]
[1688235678395,23.029,18.368,18.362,20.0]
[1688235678595,15.34000108,18.369,18.362,20.0]
[1688235678895,38.36800108,18.369,18.361,43.037]
[1688235679591,15.34000108,18.369,18.361,43.037]
[1688235679790,15.34000108,18.369,18.362,0.9850867]
[1688235679989,15.34000108,18.369,18.363,23.034]
[1688235680305,15.34000108,18.37,18.363,23.034]
[1688235681594,15.34000108,18.371,18.363,23.034]
[1688235681785,15.34000108,18.369,18.363,23.034]
[1688235682184,15.34000108,18.371,18.364,1.85343467]
[1688235682385,55.0,18.37,18.364,23.034]
[1688235682795,3.32563007,18.37,18.364,23.034]
[1688235683900,3.32563007,18.37,18.36,23.038]
[1688235683901,50.87163007,18.37,18.36,23.038]
[1688235684094,55.0,18.369,18.36,10.59301443]
[1688235684295,37.24591801,18.368,18.359,23.04]
[1688235684493,55.0,18.367,18.359,23.04]
[1688235684696,14.21591801,18.366,18.354,5.97787246]
[1688235685007,78.033,18.365,18.354,23.046]
[1688235685191,14.21591801,18.364,18.354,23.046]
[1688235685393,55.0,18.363,18.355,16.16594575]
[1688235685605,14.21591801,18.362,18.356,23.043]
[1688235685898,55.0,18.363,18.356,23.043]
[1688235686095,78.034,18.364,18.356,23.043]
[1688235686291,1.7173885,18.363,18.356,23.043]
[1688235687006,24.7523885,18.363,18.356,23.043]
[1688235687191,55.0,18.362,18.354,23.046]
[1688235687506,3.6157125,18.361,18.354,23.046]
[1688235688903,26.6537125,18.361,18.354,23.046]
[1688235689097,55.0,18.36,18.354,23.046]
[1688235689609,27.23194609,18.365,18.354,23.046]
[1688235689810,61.42868767,18.364,18.355,1.43067408]
[1688235690009,61.42868767,18.364,18.354,23.046]
[1688235690895,23.037,18.362,18.354,23.046]
[1688235691095,55.0,18.361,18.354,23.046]
[1688235691409,24.52,18.36,18.348,23.053]
[1688235691614,23.043,18.357,18.348,23.053]
[1688235691997,55.0,18.356,18.348,23.053]
[1688235692197,23.046,18.355,18.348,23.053]
[1688235692714,23.046,18.355,18.343,154.1755]
[1688235693011,23.046,18.355,18.346,23.055]
[1688235693206,55.0,18.356,18.34,192.398]
[1688235693207,23.047,18.354,18.34,192.398]
[1688235693392,2.23547147,18.352,18.345,23.057]
[1688235693592,23.049,18.353,18.345,23.057]
[1688235694293,55.0,18.356,18.345,23.057]
[1688235694496,2.21938542,18.355,18.345,23.057]
[1688235695917,23.046,18.354,18.345,23.057]
[1688235705722,23.046,18.354,18.341,20.0]
[1688235705908,58.46398019,18.353,18.343,23.059]
[1688235706219,23.051,18.351,18.343,23.059]
[1688235708107,55.0,18.35,18.341,43.062]
[1688235708417,23.053,18.349,18.341,43.062]
[1688235710517,55.0,18.348,18.339,23.065]
[1688235710715,23.056,18.346,18.339,23.065]
[1688235710903,23.056,18.346,18.337,23.066]
[1688235711421,23.056,18.346,18.335,23.069]
[1688235711607,55.0,18.345,18.335,23.069]
[1688235711807,23.061,18.343,18.335,23.069]
[1688235712511,78.062,18.342,18.335,23.069]
[1688235713424,59.352,18.349,18.335,23.069]
[1688235713622,59.29153294,18.348,18.335,23.069]
[1688235714828,23.057,18.346,18.335,23.069]
[1688235720521,55.0,18.345,18.335,23.069]
[1688235720729,23.06,18.343,18.335,23.069]
[1688235721208,23.06,18.343,18.333,114.8555]
[1688235721413,55.0,18.345,18.333,114.8555]
[1688235721414,23.063,18.341,18.333,114.8555]
[1688235722323,23.061,18.343,18.333,114.8555]
[1688235722517,55.0,18.345,18.333,114.8555]
[1688235722708,78.058,18.345,18.333,114.8555]
[1688235733933,2.95382197,18.344,18.331,23.074]
[1688235734134,23.063,18.341,18.332,20.0]
[1688235734329,23.067,18.338,18.332,20.0]
[1688235734840,136.09028011,18.351,18.333,23.072]
[1688235735028,2.76773966,18.347,18.334,1.4222306]
[1688235735228,23.055,18.347,18.336,23.068]
[1688235735939,55.0,18.346,18.336,23.068]
[1688235739040,23.055,18.347,18.336,23.068]
[1688235739242,55.0,18.346,18.336,23.068]
[1688235739544,78.057,18.346,18.336,23.068]
[1688235743650,78.057,18.346,18.334,23.07]
[1688235746030,86.539583,18.346,18.332,43.073]
[1688235746231,11.83880036,18.345,18.332,43.073]
[1688235746441,23.062,18.342,18.332,43.073]
[1688235746641,55.0,18.341,18.332,43.073]
[1688235746839,23.064,18.34,18.332,43.073]
[1688235747041,55.0,18.339,18.332,43.073]
[1688235748647,55.0,18.339,18.332,20.0]
[1688235748840,78.066,18.339,18.333,20.0]
[1688235749050,78.066,18.339,18.331,23.075]
[1688235749252,78.066,18.339,18.332,20.0]
[1688235749544,78.066,18.339,18.331,23.075]
[1688235750951,78.066,18.339,18.33,23.075]
[1688235753640,1.14019896,18.338,18.325,59.424]
[1688235754152,23.068,18.337,18.329,23.077]
[1688235754359,55.0,18.336,18.329,23.077]
[1688235755444,78.07,18.336,18.323,108.441]
[1688235755642,78.07,18.336,18.327,23.079]
[1688235758061,24.59,18.34,18.327,23.079]
[1688235758647,23.064,18.341,18.33,24.68]
[1688235758951,23.064,18.341,18.332,23.073]
[1688235759148,24.59,18.34,18.332,23.073]
[1688235759458,47.654,18.34,18.332,23.073]
[1688235760546,47.654,18.34,18.327,95.4601]
[1688235760741,55.0,18.339,18.33,23.076]
[1688235760942,23.067,18.338,18.33,23.076]
[1688235761161,55.0,18.337,18.33,23.076]
[1688235761358,23.067,18.338,18.33,23.076]
[1688235768970,47.655,18.34,18.33,23.076]
[1688235769172,23.065,18.34,18.33,47.786]
[1688235769371,104.48376829,18.347,18.33,47.786]
[1688235769556,59.358,18.347,18.33,47.786]
[1688235769873,87.23885129,18.347,18.331,20.0]
[1688235770168,23.059,18.345,18.335,23.069]
[1688235772654,51.6990407,18.35,18.335,23.069]
[1688235772868,1.5879861,18.349,18.34,24.68]
[1688235773059,23.048,18.353,18.343,23.059]
[1688235773258,23.045,18.356,18.343,82.427]
[1688235773456,24.52,18.36,18.343,23.059]
[1688235773664,4.74508158,18.359,18.344,1.89345248]
[1688235773977,23.041,18.358,18.348,23.053]
[1688235774177,23.041,18.358,18.341,205.2592]
[1688235774355,1.8767561,18.357,18.342,24.8814677]
[1688235774556,23.044,18.356,18.348,23.054]
[1688235775577,23.042,18.358,18.348,23.054]
[1688235776867,55.0,18.357,18.348,23.054]
[1688235777070,78.043,18.357,18.348,23.054]
[1688235777561,23.041,18.361,18.348,23.054]
[1688235777783,23.037,18.362,18.348,23.054]
[1688235777963,23.037,18.362,18.35,24.51]
[1688235778279,23.037,18.362,18.353,23.047]
[1688235779056,55.0,18.361,18.353,23.047]
[1688235779263,78.039,18.361,18.353,23.047]
[1688235782081,78.039,18.361,18.351,23.049]
[1688235783185,47.541,18.366,18.351,23.049]
[1688235783477,23.032,18.366,18.352,76.42681229]
[1688235783775,8.482583,18.371,18.358,23.041]
[1688235784377,8.482583,18.371,18.354,59.33]
[1688235784378,23.028,18.369,18.356,23.043]
[1688235784577,23.028,18.369,18.355,91.6778]
[1688235784878,23.033,18.365,18.355,91.6778]
[1688235785063,27.81218653,18.374,18.355,91.6778]
[1688235785278,6.47939104,18.372,18.357,4.85164475]
[1688235785484,23.033,18.365,18.357,27.89364475]
[1688235785669,23.033,18.365,18.357,23.042]
[1688235786284,23.031,18.367,18.357,23.042]
[1688235786777,23.028,18.369,18.357,23.042]
[1688235786982,55.0,18.368,18.355,91.6778]
[1688235787159,78.029,18.368,18.357,23.042]
[1688235790565,55.0,18.368,18.355,91.6778]
[1688235790768,78.029,18.368,18.357,23.042]
[1688235841806,23.027,18.37,18.36,24.74]
[1688235842106,23.025,18.372,18.364,23.034]
[1688235842312,49.77560396,18.376,18.364,23.034]
[1688235842518,24.74,18.38,18.364,23.034]
[1688235842814,23.017,18.377,18.369,23.027]
[1688235843397,23.016,18.379,18.369,23.027]
[1688235843993,23.016,18.379,18.365,10.83719922]
[1688235844198,23.016,18.379,18.367,23.029]
[1688235844398,1.59984362,18.378,18.367,23.029]
[1688235844609,23.02,18.375,18.367,23.029]
[1688235845194,55.0,18.378,18.367,23.029]
[1688235845400,23.017,18.378,18.367,23.029]
[1688235845610,55.0,18.377,18.367,23.029]
[1688235847990,396.8,18.39,18.373,23.021]
[1688235847991,143.322,18.388,18.373,23.021]
[1688235848195,23.011,18.383,18.373,23.021]
[1688235851516,24.74,18.386,18.374,55.0]
[1688235851823,480.759,18.39,18.377,23.017]
[1688235852001,23.005,18.388,18.377,23.017]
[1688235853923,24.74,18.39,18.377,23.017]
[1688235853924,47.742,18.39,18.377,23.017]
[1688235854718,23.005,18.388,18.377,23.017]
[1688235854896,55.0,18.389,18.377,23.017]
[1688235855817,78.003,18.389,18.377,23.017]
[1688235857519,245.276,18.389,18.373,23.021]
[1688235857819,23.01,18.383,18.371,23.025]
[1688235858003,23.015,18.379,18.372,20.0]
[1688235858908,23.015,18.379,18.372,43.023]
[1688235860821,23.013,18.381,18.372,43.023]
[1688235861027,55.0,18.38,18.372,43.023]
[1688235862422,102.755,18.38,18.37,23.025]
[1688235862718,102.755,18.38,18.365,10.83719922]
[1688235862719,2.24535719,18.379,18.365,10.83719922]
[1688235862919,23.016,18.378,18.37,23.026]
[1688235867519,55.0,18.377,18.37,23.026]
[1688235867836,23.02,18.375,18.367,23.029]
[1688235868011,55.0,18.374,18.367,23.029]
[1688235868822,78.021,18.374,18.367,23.029]
[1688235869031,78.021,18.374,18.365,23.031]
[1688235869245,78.021,18.374,18.36,10.83719922]
[1688235869528,23.029,18.369,18.359,23.04]
[1688235869734,55.0,18.368,18.359,23.04]
[1688235870026,78.029,18.368,18.359,23.04]
[1688235877629,78.029,18.368,18.354,99.8138]
[1688235877927,78.029,18.368,18.357,23.042]
[1688235900737,78.029,18.368,18.355,23.044]
[1688235900941,2.46238448,18.367,18.354,99.8138]
[1688235901249,23.035,18.364,18.354,122.8598]
[1688235901543,23.037,18.362,18.354,122.8598]
[1688235902126,23.037,18.362,18.354,23.046]
[1688235902327,55.0,18.361,18.354,23.046]
[1688235907754,55.0,18.362,18.354,23.046]
[1688235908654,23.035,18.363,18.354,23.046]
[1688235909053,55.0,18.362,18.354,23.046]
[1688235909363,78.037,18.362,18.354,23.046]
[1688235909536,78.037,18.362,18.35,1.48417744]
[1688235909741,78.037,18.362,18.35,20.0]
[1688235910459,78.037,18.362,18.35,43.051]
[1688235911559,55.0,18.362,18.35,43.051]
[1688235911950,55.0,18.363,18.35,43.051]
[1688235913157,78.035,18.363,18.351,1.01036464]
[1688235913363,78.035,18.363,18.354,23.045]
[1688235917963,78.035,18.363,18.352,23.048]
[1688235918162,78.035,18.363,18.353,20.0]
[1688235918362,78.035,18.363,18.353,43.046]
[1688235924368,1.4977512,18.366,18.354,1.35498882]
[1688235924669,2.38543305,18.367,18.358,23.041]
[1688235924961,23.03,18.367,18.358,23.041]
[1688235925768,55.0,18.366,18.358,23.041]
[1688235925963,78.031,18.366,18.358,23.041]
[1688235931083,55.0,18.366,18.358,23.041]
[1688235931256,55.0,18.367,18.358,23.041]
[1688235933662,78.03,18.367,18.358,23.041]
[1688235939679,78.03,18.367,18.356,23.043]
[1688235940385,0.9110901,18.366,18.356,23.043]
[1688235940677,23.035,18.363,18.356,23.043]
[1688235943276,23.034,18.365,18.356,23.043]
[1688235943478,55.0,18.364,18.356,23.043]
[1688235943778,78.034,18.364,18.356,23.043]
[1688235948581,23.032,18.366,18.356,23.043]
[1688235948969,55.0,18.365,18.356,23.043]
[1688235949664,78.033,18.365,18.356,23.043]
[1688235957383,55.0,18.365,18.356,23.043]
[1688235958883,78.033,18.365,18.356,23.043]
[1688235965081,55.0,18.365,18.356,23.043]
[1688235965279,1.87722723,18.368,18.356,23.043]
[1688235965480,24.75,18.37,18.357,2.58410518]
[1688235965692,23.03,18.368,18.36,23.038]
[1688235966494,55.0,18.367,18.36,23.038]
[1688235969091,78.03,18.367,18.36,23.038]
[1688235972291,78.03,18.367,18.358,23.04]
[1688235973083,78.03,18.367,18.356,10.83719922]
[1688235973396,78.03,18.367,18.356,33.88119922]
[1688235982082,23.028,18.369,18.36,24.73]
[1688235982287,23.026,18.371,18.363,23.034]
[1688235982499,8.54536279,18.377,18.363,23.034]
[1688235982703,23.97429051,18.376,18.363,23.034]
[1688235982994,23.025,18.372,18.363,23.034]
[1688235983296,23.025,18.372,18.361,23.036]
[1688235983494,55.0,18.371,18.361,23.036]
[1688235983678,23.029,18.368,18.361,23.036]
[1688235986007,23.027,18.37,18.361,23.036]
[1688235999597,55.0,18.369,18.355,91.3143]
[1688235999801,23.033,18.365,18.356,2.04242589]
[1688235999992,23.033,18.365,18.356,10.83719922]
[1688236000709,23.033,18.365,18.356,33.88119922]
[1688236002496,23.031,18.367,18.356,33.88119922]
[1688236009613,74.46121622,18.374,18.356,33.88119922]
[1688236009798,23.028,18.369,18.36,24.75]
[1688236010014,23.026,18.371,18.362,23.036]
[1688236014300,27.66518822,18.374,18.362,23.036]
[1688236014301,50.68618822,18.374,18.363,55.0]
[1688236014627,23.021,18.374,18.366,23.031]
[1688236014807,59.254,18.379,18.366,23.031]
[1688236015005,23.02,18.376,18.366,23.031]
[1688236018124,23.02,18.376,18.366,33.86819922]
[1688236019103,23.017,18.378,18.366,33.86819922]
[1688236021218,55.0,18.377,18.364,94.5281]
[1688236021424,23.022,18.374,18.365,23.032]
[1688236022219,55.0,18.373,18.365,23.032]
[1688236022424,23.024,18.372,18.365,23.032]
[1688236022621,55.0,18.373,18.365,23.032]
[1688236023830,78.023,18.373,18.365,23.032]
[1688236025128,55.0,18.373,18.365,23.032]
[1688236025314,1.98938534,18.378,18.365,23.032]
[1688236025516,56.98938534,18.378,18.365,23.032]
[1688236025834,1.98938534,18.378,18.365,23.032]
[1688236026125,24.69,18.38,18.369,23.026]
[1688236026711,47.704,18.38,18.369,23.026]
[1688236027825,23.017,18.377,18.369,23.026]
[1688236030930,23.017,18.377,18.367,23.029]
[1688236031225,23.023,18.373,18.365,23.032]
[1688236031621,55.0,18.372,18.365,23.032]
[1688236042840,23.021,18.374,18.365,23.032]
[1688236044026,24.75,18.37,18.355,108.252]
[1688236044254,23.029,18.368,18.359,23.039]
[1688236044742,78.031,18.367,18.359,23.039]
[1688236050145,78.031,18.367,18.359,18.039]
[1688236055853,55.0,18.367,18.359,18.039]
[1688236056040,55.0,18.368,18.359,18.039]
[1688236056348,24.75,18.37,18.359,18.039]
[1688236057061,47.777,18.37,18.359,18.039]
[1688236057436,55.0,18.369,18.359,18.039]
[1688236057649,78.028,18.369,18.359,18.039]
[1688236060250,78.028,18.369,18.357,23.041]
[1688236060549,1.8469672,18.368,18.357,23.041]
[1688236060744,23.033,18.365,18.357,23.041]
[1688236062455,23.031,18.367,18.357,23.041]
[1688236065451,55.0,18.366,18.357,23.041]
[1688236065656,78.031,18.366,18.357,23.041]
[1688236066552,24.75,18.37,18.357,23.041]
[1688236066553,23.03,18.368,18.357,23.041]
[1688236066755,55.0,18.367,18.357,23.041]
[1688236068445,47.777,18.37,18.357,23.041]
[1688236068651,57.4252946,18.369,18.357,23.041]
[1688236068852,55.0,18.369,18.357,23.041]
[1688236069257,78.028,18.369,18.357,23.041]
[1688236069455,78.028,18.369,18.358,1.53183984]
[1688236069761,78.028,18.369,18.36,23.038]
[1688236072961,2.00033599,18.368,18.36,23.038]
[1688236073253,25.02933599,18.368,18.36,23.038]
[1688236082772,23.029,18.368,18.36,23.038]
[1688236083071,23.029,18.368,18.358,23.04]
[1688236083272,23.029,18.368,18.359,8.38831896]
[1688236083875,23.029,18.368,18.359,31.42831896]
[1688236084265,23.029,18.368,18.359,23.04]
[1688236088385,23.029,18.368,18.361,8.38831896]
[1688236092183,23.029,18.368,18.36,24.73]
[1688236092385,8.16552057,18.367,18.355,23.044]
[1688236092586,23.034,18.364,18.356,13.02866429]
[1688236092882,23.034,18.364,18.356,36.07266429]
[1688236096165,23.031,18.366,18.356,36.07266429]
[1688236096365,8.80752902,18.365,18.356,36.07266429]
[1688236097279,31.84052902,18.365,18.356,36.07266429]
[1688236097483,23.033,18.365,18.356,36.07266429]
[1688236098981,23.033,18.365,18.356,46.90986351]
[1688236101484,8.80752902,18.366,18.356,46.90986351]
[1688236104187,8.80752902,18.366,18.356,74.20675031]
[1688236106192,8.80752902,18.366,18.356,133.53275031]
[1688236106393,9.9775646,18.368,18.36,24.75]
[1688236106685,9.9775646,18.368,18.361,36.06466429]
[1688236107072,23.028,18.369,18.361,36.06466429]
[1688236107694,23.025,18.371,18.361,36.06466429]
[1688236111493,23.028,18.369,18.361,36.06466429]
[1688236121086,23.028,18.369,18.361,13.02866429]
[1688236122407,23.033,18.365,18.357,15.1289172]
[1688236124107,23.033,18.365,18.357,38.1709172]
[1688236124690,23.033,18.365,18.357,25.96611642]
[1688236125211,23.033,18.365,18.357,10.83719922]
[1688236125592,23.033,18.365,18.357,33.87919922]
[1688236125805,23.033,18.365,18.358,15.1289172]